fUST/lending_fUST_20251115
["ID","MTS","AMOUNT","RATE_DAILY","PERIOD"]
[394042326,1763215850252,-151.0,0.000388,120]
[394042327,1763215850264,-263.062002,0.000388,120]
[394042328,1763215850274,-169.998503,0.000388,120]
[394042329,1763215850286,-151.0,0.000388,120]
[394042330,1763215850296,-153.77,0.00038815,120]
[394042331,1763215850306,-1000.0,0.000389,15]
[394042332,1763215850316,-150.0,0.00038913,30]
[394042333,1763215850327,-153.84,0.00038915,120]
[394042334,1763215850338,-1000.0,0.00039,120]
[394042335,1763215850350,-2000.0,0.00039033,21]
[394042336,1763215850360,-166.990251,0.00039127,2]
[394042337,1763215850371,-158.545388,0.00039127,2]
[394042338,1763215850382,-4298.20884407,0.00039135,2]
[394042339,1763215850393,-1245.41942697,0.00039167,2]
[394042340,1763215850404,-300.0,0.00039173,5]
[394042341,1763215850415,-500.0,0.00039191,2]
[394042342,1763215850425,-2000.0,0.00039191,12]
[394042343,1763215850437,-2000.0,0.000392,12]
[394042344,1763215850448,-1227.63267908,0.000392,12]
[394042345,1763215850460,-403.74,0.00039212,2]
[394042346,1763215850471,-166.990251,0.00039236,2]
[394042347,1763215850483,-158.545388,0.00039236,2]
[394042348,1763215850494,-151.0,0.00039254,120]
[394042349,1763215850505,-151.0,0.00039254,120]
[394042350,1763215850517,-151.0,0.00039254,120]
[394042351,1763215850528,-167.282364,0.00039254,120]
[394042352,1763215850539,-500.0,0.0003926,30]
[394042353,1763215850551,-151.0,0.00039267,120]
[394042354,1763215850565,-9722321.66859413,0.00039267,20]
[394042355,1763215850575,-4412433.1940361,0.00039267,20]
[394042356,1763215850585,-260.0,0.00039267,30]
[394042357,1763215850595,-30720.50834235,0.00039267,120]
[394042358,1763215850606,-17951.03611345,0.00039267,60]
[394042359,1763215850615,-5000.0,0.00039267,71]
[394042360,1763215850626,-370724.36021875,0.00039267,120]
[394042361,1763215850636,-166.990251,0.00039291,20]
[394042362,1763215850647,-158.545388,0.00039291,20]
[394042363,1763215850661,-166.990251,0.000393,20]
[394042364,1763215850677,-158.545388,0.000393,20]
[394042365,1763215850689,-204.79,0.000394,7]
[394042366,1763215850700,-241.4347467,0.000396,120]
[394042367,1763215850710,-219.66097264,0.000396,120]
[394042368,1763215850721,-185.97451897,0.000396,120]
[394042369,1763215850731,-443.812283,0.00039654,2]
[394042370,1763215850741,-600.0,0.00039779,90]
[394042371,1763215850750,-291.69857279,0.00039851,40]
[394042372,1763215850760,-1000.0,0.000399,15]
[394042373,1763215850771,-394.27420599,0.00039999,31]
[394042374,1763215850781,-400.06746235,0.00039999,31]
[394042375,1763215850791,-500.0,0.00039999,7]
[394042376,1763215850801,-500.0,0.00039999,7]
[394042377,1763215850812,-500.0,0.00039999,7]
[394042378,1763215850822,-500.0,0.00039999,31]
[394042379,1763215850831,-500.0,0.00039999,7]
[394042380,1763215850842,-500.0,0.00039999,7]
[394042381,1763215850851,-609.94811772,0.00039999,31]
[394042382,1763215850861,-500.0,0.00039999,7]
[394042383,1763215850871,-500.0,0.00039999,31]
[394042384,1763215850881,-500.0,0.00039999,7]
[394042385,1763215850890,-500.0,0.00039999,7]
[394042386,1763215850901,-332.13799236,0.00039999,7]
[394042387,1763215850911,-583.13498015,0.00039999,31]
[394042388,1763215850920,-208.77418422,0.00039999,31]
[394042389,1763215850931,-516.73596311,0.00039999,31]
[394042390,1763215850942,-250.0,0.0004,7]
[394042391,1763215850952,-183.82,0.0004,60]
[394042392,1763215850962,-153.0,0.000402,120]
[394042393,1763215850972,-500.0,0.00040287,2]
[394042394,1763215850982,-219.66097264,0.000408,120]
[394042395,1763215850992,-313.0,0.000408,30]
[394042396,1763215851005,-261.51676401,0.00040888,4]
[394042397,1763215851015,-3583.4435705,0.00040935,2]
[394042398,1763215851026,-999.0,0.00041095,120]
[394042399,1763215851036,-500.0,0.00041096,120]
[394042400,1763215851047,-150.92793218,0.00041096,10]
[394042401,1763215851057,-1073.9237343,0.00041179,2]
[394042402,1763215851068,-500.0,0.0004137,120]
[394042403,1763215851078,-151.0,0.0004137,120]
[394042404,1763215851088,-500.0,0.00041383,2]
[394042405,1763215851099,-985.0,0.00041555,2]
[394042406,1763215851110,-2149.0,0.00041555,2]
[394042407,1763215851121,-629.0,0.00041555,2]
[394042408,1763215851131,-500.0,0.00041644,120]
[394042409,1763215851142,-291.69857279,0.00041682,48]
[394042410,1763215851151,-593.08,0.00041918,120]
[394042411,1763215851162,-780.01306687,0.00041977,2]
[394042412,1763215851172,-533.76694547,0.00041977,2]
[394042413,1763215851182,-153.0,0.00042,120]
[394042414,1763215851192,-173.03,0.00042156,30]
[394042415,1763215851203,-970.54362204,0.00042175,4]
[394042416,1763215851214,-538.32,0.00042229,2]
[394042417,1763215851346,-168.0,0.00042268,120]
[394042418,1763215851356,-500.0,0.00042479,2]
[394042419,1763215851365,-163.5788256,0.00043104,2]
[394042420,1763215851374,-767.192,0.0004322,30]
[394042421,1763215851383,-4683.85,0.000433,14]
[394042422,1763215851391,-787.9,0.000433,14]
[394042423,1763215851400,-291.69857279,0.00043512,56]
[394042424,1763215851410,-500.0,0.00043575,2]
[394042425,1763215851419,-153.0,0.000437,120]
[394042426,1763215851428,-720.0,0.00043757,90]
[394042427,1763215851438,-999.0,0.00043835,120]
[394042428,1763215851447,-245.6770184,0.00044,120]
[394042429,1763215851456,-199.0,0.00044109,14]
[394042430,1763215851466,-168.0,0.00044381,120]
[394042431,1763215851475,-500.0,0.0004467,2]
[394042432,1763215851484,-160.85612335,0.00045,60]
[394042433,1763215851493,-1232.74023904,0.00045,120]
[394042434,1763215851501,-313.0,0.00045,30]
[394042435,1763215851511,-672.91,0.00045245,2]
[394042436,1763215851520,-291.69857279,0.00045343,63]
[394042437,1763215851529,-230.71,0.00045399,30]
[394042438,1763215851538,-199.0,0.00045479,15]
[394042439,1763215851548,-153.0,0.000455,120]
[394042440,1763215851560,-500.0,0.00045766,2]
[394042441,1763215851569,-443.812283,0.00046143,2]
[394042442,1763215851578,-999.0,0.00046575,120]
[394042443,1763215851588,-168.0,0.000466,120]
[394042444,1763215851597,-199.0,0.00046849,16]
[394042445,1763215851606,-500.0,0.00046862,2]
[394042446,1763215851615,-200.0,0.00047,120]
[394042447,1763215851624,-191.243458,0.00047105,30]
[394042448,1763215851634,-291.69857279,0.00047174,71]
[394042449,1763215851643,-4683.85,0.000472,14]
[394042450,1763215851652,-787.9,0.000472,14]
[394042451,1763215851661,-153.0,0.000472,120]
[394042452,1763215851670,-331.3138773,0.00047607,2]
[394042453,1763215851679,-780.79307994,0.00047607,2]
[394042454,1763215851688,-534.30071242,0.00047607,2]
[394042455,1763215851697,-332.13855883,0.00047607,2]
[394042456,1763215851706,-331.5803149,0.00047607,2]
[394042457,1763215851715,-507.46318473,0.00047958,2]
[394042458,1763215851725,-1000.0,0.00048,120]
[394042459,1763215851733,-150.0,0.00048,120]
[394042460,1763215851743,-250.0,0.0004811,60]
[394042461,1763215851752,-864.0,0.00048133,90]
[394042462,1763215851763,-199.0,0.00048219,17]
[394042463,1763215851774,-807.49,0.00048262,2]
[394042464,1763215851783,-288.39,0.00048642,30]
[394042465,1763215851792,-150.0,0.00049,120]
[394042466,1763215851801,-153.0,0.00049,120]
[394042467,1763215851811,-291.69857279,0.00049005,79]
[394042468,1763215851821,-313.0,0.000491,30]
[394042469,1763215851831,-999.0,0.00049315,120]
[394042470,1763215851840,-275.55,0.00049315,30]
[394042471,1763215851849,-199.0,0.00049589,18]
[394042472,1763215851859,-150.0,0.0005,120]
[394042473,1763215851868,-321.35,0.00050027,70]
[394042474,1763215851878,-153.0,0.000507,120]
[394042475,1763215851889,-291.69857279,0.00050836,86]
[394042476,1763215851899,-199.0,0.00050958,19]
[394042477,1763215851909,-150.0,0.00051,120]
[394042478,1763215851918,-166.990251,0.00051087,7]
[394042479,1763215851928,-158.545388,0.00051087,7]
[394042480,1763215851937,-942.07,0.00051278,2]
[394042481,1763215851946,-4683.85,0.000516,14]
[394042482,1763215851955,-787.9,0.000516,14]
[394042483,1763215851963,-346.07,0.00051884,30]
[394042484,1763215851972,-500.0,0.00051945,90]
[394042485,1763215851981,-1000.0,0.00052,120]
[394042486,1763215851990,-150.0,0.00052,120]
[394042487,1763215851999,-999.0,0.00052054,120]
[394042488,1763215852008,-500.0,0.00052055,2]
[394042489,1763215852017,-500.0,0.00052055,2]
[394042490,1763215852026,-500.0,0.00052055,2]
[394042491,1763215852035,-500.0,0.00052055,2]
[394042492,1763215852044,-500.0,0.00052055,2]
[394042493,1763215852053,-500.0,0.00052055,2]
[394042494,1763215852062,-500.0,0.00052055,2]
[394042495,1763215852071,-500.0,0.00052055,2]
[394042496,1763215852080,-225.74717644,0.00052055,2]
[394042497,1763215852089,-206.69518237,0.00052055,46]
[394042498,1763215852098,-224.50549512,0.00052055,120]
[394042499,1763215852107,-151.0,0.00052055,120]
[394042500,1763215852116,-500.0,0.00052055,120]
[394042501,1763215852125,-500.0,0.00052055,120]
[394042502,1763215852133,-420.18077194,0.00052055,120]
[394042503,1763215852142,-151.0,0.00052055,120]
[394042504,1763215852151,-151.0,0.00052055,120]
[394042505,1763215852160,-226.55925331,0.00052055,120]
[394042506,1763215852169,-151.0,0.00052055,120]
[394042507,1763215852178,-151.0,0.00052055,120]
[394042508,1763215852186,-151.0,0.00052055,120]
[394042509,1763215852195,-500.0,0.00052055,120]
[394042510,1763215852204,-500.0,0.00052055,120]
[394042511,1763215852214,-500.0,0.00052055,120]
[394042512,1763215852223,-500.0,0.00052055,120]
[394042513,1763215852232,-500.0,0.00052055,120]
[394042514,1763215852242,-181.07729935,0.00052055,120]
[394042515,1763215852251,-500.0,0.00052055,120]
[394042516,1763215852261,-500.0,0.00052055,120]
[394042517,1763215852270,-489.29227253,0.00052055,120]
[394042518,1763215852279,-153.41763183,0.00052055,120]
[394042519,1763215852288,-500.0,0.00052055,120]
[394042520,1763215852297,-500.0,0.00052055,120]
[394042521,1763215852306,-500.0,0.00052055,120]
[394042522,1763215852315,-500.0,0.00052055,120]
[394042523,1763215852324,-500.0,0.00052055,120]
[394042524,1763215852333,-500.0,0.00052055,120]
[394042525,1763215852343,-500.0,0.00052055,120]
[394042526,1763215852352,-500.0,0.00052055,120]
[394042527,1763215852362,-500.0,0.00052055,120]
[394042528,1763215852371,-500.0,0.00052055,120]
[394042529,1763215852381,-512.08347452,0.00052055,120]
[394042530,1763215852390,-151.0,0.00052055,120]
[394042531,1763215852400,-151.0,0.00052055,120]
[394042532,1763215852410,-151.0,0.00052055,120]
[394042533,1763215852419,-203.50675096,0.00052055,120]
[394042534,1763215852429,-275.04818742,0.00052055,120]
[394042535,1763215852438,-500.0,0.00052055,120]
[394042536,1763215852448,-500.0,0.00052055,120]
[394042537,1763215852458,-500.0,0.00052055,120]
[394042538,1763215852468,-500.0,0.00052055,120]
[394042539,1763215852477,-366.23698151,0.00052055,120]
[394042540,1763215852488,-500.0,0.00052055,120]
[394042541,1763215852497,-500.0,0.00052055,120]
[394042542,1763215852506,-424.22060696,0.00052055,120]
[394042543,1763215852515,-151.0,0.00052055,2]
[394042544,1763215852525,-500.0,0.00052055,120]
[394042545,1763215852534,-500.0,0.00052055,120]
[394042546,1763215852543,-545.10443967,0.00052055,120]
[394042547,1763215852553,-259.51796627,0.00052055,2]
[394042548,1763215852566,-151.0,0.00052055,120]
[394042549,1763215852575,-151.0,0.00052055,120]
[394042550,1763215852585,-151.0,0.00052055,120]
[394042551,1763215852599,-151.0,0.00052055,120]
[394042552,1763215852608,-223.0914612,0.00052055,120]
[394042553,1763215852618,-500.0,0.00052055,120]
[394042554,1763215852627,-500.0,0.00052055,120]
[394042555,1763215852639,-227.8073943,0.00052055,120]
[394042556,1763215852649,-151.0,0.00052055,120]
[394042557,1763215852659,-151.0,0.00052055,120]
[394042558,1763215852668,-151.0,0.00052055,120]
[394042559,1763215852677,-267.74833447,0.00052055,120]
[394042560,1763215852686,-500.0,0.00052055,120]
[394042561,1763215852696,-500.0,0.00052055,120]
[394042562,1763215852705,-613.36719902,0.00052055,120]
[394042563,1763215852715,-500.0,0.00052055,120]
[394042564,1763215852724,-500.0,0.00052055,120]
[394042565,1763215852734,-500.0,0.00052055,120]
[394042566,1763215852743,-500.0,0.00052055,120]
[394042567,1763215852752,-500.0,0.00052055,120]
[394042568,1763215852761,-500.0,0.00052055,120]
[394042569,1763215852770,-500.0,0.00052055,120]
[394042570,1763215852779,-500.0,0.00052055,120]
[394042571,1763215852789,-500.0,0.00052055,120]
[394042572,1763215852798,-270.42380973,0.00052055,120]
[394042573,1763215852808,-651.0,0.00052055,120]
[394042574,1763215852818,-651.0,0.00052055,120]
[394042575,1763215852827,-651.0,0.00052055,120]
[394042576,1763215852837,-651.0,0.00052055,120]
[394042577,1763215852847,-651.0,0.00052055,120]
[394042578,1763215852857,-651.0,0.00052055,120]
[394042579,1763215852867,-651.0,0.00052055,120]
[394042580,1763215852876,-651.0,0.00052055,120]
[394042581,1763215852886,-651.0,0.00052055,120]
[394042582,1763215852896,-651.0,0.00052055,120]
[394042583,1763215852905,-651.0,0.00052055,120]
[394042584,1763215852914,-651.0,0.00052055,120]
[394042585,1763215852924,-651.0,0.00052055,120]
[394042586,1763215852933,-651.0,0.00052055,120]
[394042587,1763215852943,-651.0,0.00052055,120]
[394042588,1763215852952,-651.0,0.00052055,120]
[394042589,1763215852961,-651.0,0.00052055,120]
[394042590,1763215852971,-651.0,0.00052055,120]
[394042591,1763215852980,-651.0,0.00052055,120]
[394042592,1763215852990,-651.0,0.00052055,120]
[394042593,1763215852999,-651.0,0.00052055,120]
[394042594,1763215853009,-651.0,0.00052055,120]
[394042595,1763215853019,-651.0,0.00052055,120]
[394042596,1763215853028,-661.17016425,0.00052055,120]
[394042597,1763215853038,-151.0,0.00052055,120]
[394042598,1763215853047,-151.0,0.00052055,120]
[394042599,1763215853060,-151.47634281,0.00052055,120]
[394042600,1763215853077,-500.0,0.00052055,120]
[394042601,1763215853086,-500.0,0.00052055,120]
[394042602,1763215853097,-500.0,0.00052055,120]
[394042603,1763215853107,-352.42073551,0.00052055,120]
[394042604,1763215853116,-199.0,0.00052328,20]
[394042605,1763215853126,-153.0,0.000525,120]
[394042606,1763215853136,-443.812283,0.00052632,2]
[394042607,1763215853146,-291.69857279,0.00052666,94]
[394042608,1763215853156,-1000.0,0.00052946,120]
[394042609,1763215853165,-1000.0,0.00053,120]
[394042610,1763215853174,-150.0,0.00053,120]
[394042611,1763215853184,-199.0,0.00053698,21]
[394042612,1763215853193,-163.5788256,0.0005388,2]
[394042613,1763215853203,-1000.0,0.00054,120]
[394042614,1763215853213,-1000.0,0.00054,120]
[394042615,1763215853223,-1000.0,0.00054,120]
[394042616,1763215853233,-1000.0,0.00054,120]
[394042617,1763215853242,-150.0,0.00054,120]
[394042618,1763215853252,-4000.0,0.000542,120]
[394042619,1763215853261,-1076.65,0.00054294,2]
[394042620,1763215853271,-153.0,0.000543,120]
[394042621,1763215853281,-600.0,0.00054411,90]
[394042622,1763215853291,-291.69857279,0.00054497,102]
[394042623,1763215853300,-313.0,0.000545,30]
[394042624,1763215853311,-2000.0,0.00054678,120]
[394042625,1763215853320,-250.0,0.00054747,120]
[394042626,1763215853330,-500.0,0.00054794,120]
[394042627,1763215853341,-500.0,0.00054794,120]
[394042628,1763215853351,-500.0,0.00054794,120]
[394042629,1763215853361,-500.0,0.00054794,2]
[394042630,1763215853370,-500.0,0.00054794,120]
[394042631,1763215853380,-500.0,0.00054794,120]
[394042632,1763215853390,-541.66,0.00054794,120]
[394042633,1763215853400,-503.06665132,0.00054794,120]
[394042634,1763215853418,-500.0,0.00054794,120]
[394042635,1763215853427,-500.0,0.00054794,120]
[394042636,1763215853437,-500.0,0.00054794,120]
[394042637,1763215853447,-500.0,0.00054794,120]
[394042638,1763215853456,-999.0,0.00054794,120]
[394042639,1763215853465,-500.0,0.00054794,120]
[394042640,1763215853475,-500.0,0.00054794,2]
[394042641,1763215853485,-1197.87,0.00054794,120]
[394042642,1763215853494,-500.0,0.00054794,120]
[394042643,1763215853503,-500.0,0.00054794,120]
[394042644,1763215853513,-500.0,0.00054794,120]
[394042645,1763215853523,-291.06737167,0.00054794,120]
[394042646,1763215853532,-500.0,0.00054794,120]
[394042647,1763215853541,-185.89349547,0.00054795,120]
[394042648,1763215853551,-185.89349547,0.00054795,120]
[394042649,1763215853565,-185.89349547,0.00054795,120]
[394042650,1763215853574,-185.89,0.00054795,120]
[394042651,1763215853584,-157.72781434,0.00054795,120]
[394042652,1763215853596,-157.72781434,0.00054795,120]
[394042653,1763215853607,-157.72781434,0.00054795,120]
[394042654,1763215853616,-157.72781434,0.00054795,120]
[394042655,1763215853626,-157.72781434,0.00054795,120]
[394042656,1763215853637,-157.72781434,0.00054795,120]
[394042657,1763215853647,-157.72781434,0.00054795,120]
[394042658,1763215853656,-157.72781434,0.00054795,120]
[394042659,1763215853666,-157.72781434,0.00054795,120]
[394042660,1763215853676,-157.72781434,0.00054795,120]
[394042661,1763215853685,-157.72,0.00054795,120]
[394042662,1763215853694,-450.0,0.00054795,120]
[394042663,1763215853704,-450.0,0.00054795,120]
[394042664,1763215853713,-450.0,0.00054795,120]
[394042665,1763215853722,-450.0,0.00054795,120]
[394042666,1763215853732,-450.0,0.00054795,120]
[394042667,1763215853741,-450.0,0.00054795,120]
[394042668,1763215853751,-450.0,0.00054795,120]
[394042669,1763215853760,-450.0,0.00054795,120]
[394042670,1763215853770,-450.0,0.00054795,120]
[394042671,1763215853782,-450.0,0.00054795,120]
[394042672,1763215853792,-450.0,0.00054795,120]
[394042673,1763215853801,-450.0,0.00054795,120]
[394042674,1763215853811,-450.0,0.00054795,120]
[394042675,1763215853821,-450.0,0.00054795,120]
[394042676,1763215853830,-450.0,0.00054795,120]
[394042677,1763215853842,-450.0,0.00054795,120]
[394042678,1763215853851,-450.0,0.00054795,120]
[394042679,1763215853861,-450.0,0.00054795,120]
[394042680,1763215853870,-450.0,0.00054795,120]
[394042681,1763215853879,-450.0,0.00054795,120]
[394042682,1763215853888,-150.0,0.000549,120]
[394042683,1763215853897,-299.3156889,0.00054986,60]
[394042684,1763215853907,-1000.0,0.00055,120]
[394042685,1763215853917,-1000.0,0.00055,120]
[394042686,1763215853927,-1000.0,0.00055,120]
[394042687,1763215853936,-1528.87,0.00055,120]
[394042688,1763215853945,-1000.0,0.00055,120]
[394042689,1763215853955,-500.0,0.00055068,120]
[394042690,1763215853964,-500.0,0.00055068,120]
[394042691,1763215853974,-199.0,0.00055068,38]
[394042692,1763215853983,-500.0,0.00055068,120]
[394042693,1763215853992,-541.66,0.00055068,120]
[394042694,1763215854002,-500.0,0.00055068,120]
[394042695,1763215854011,-500.0,0.00055068,120]
[394042696,1763215854021,-500.0,0.00055068,120]
[394042697,1763215854030,-500.0,0.00055068,120]
[394042698,1763215854039,-500.0,0.00055068,2]
[394042699,1763215854048,-1197.87,0.00055068,120]
[394042700,1763215854058,-500.0,0.00055068,120]
[394042701,1763215854067,-500.0,0.00055068,120]
[394042702,1763215854166,-403.74,0.00055127,30]
[394042703,1763215854176,-500.0,0.00055342,120]
[394042704,1763215854186,-500.0,0.00055342,120]
[394042705,1763215854196,-500.0,0.00055342,120]
[394042706,1763215854205,-541.66,0.00055342,120]
[394042707,1763215854215,-500.0,0.00055342,120]
[394042708,1763215854225,-500.0,0.00055342,120]
[394042709,1763215854234,-500.0,0.00055342,120]
[394042710,1763215854244,-500.0,0.00055342,120]
[394042711,1763215854254,-500.0,0.00055342,2]
[394042712,1763215854264,-1197.87,0.00055342,120]
[394042713,1763215854273,-500.0,0.00055342,120]
[394042714,1763215854283,-500.0,0.00055342,120]
[394042715,1763215854292,-166.990251,0.00055437,120]
[394042716,1763215854302,-158.545388,0.00055437,120]
[394042717,1763215854311,-500.0,0.00055616,120]
[394042718,1763215854320,-500.0,0.00055616,120]
[394042719,1763215854330,-500.0,0.00055616,120]
[394042720,1763215854339,-166.990251,0.00055616,7]
[394042721,1763215854350,-541.66,0.00055616,120]
[394042722,1763215854360,-158.545388,0.00055616,7]
[394042723,1763215854369,-370.0,0.00055616,120]
[394042724,1763215854379,-500.0,0.00055616,120]
[394042725,1763215854388,-500.0,0.00055616,120]
[394042726,1763215854398,-500.0,0.00055616,120]
[394042727,1763215854407,-500.0,0.00055616,2]
[394042728,1763215854419,-1197.87,0.00055616,120]
[394042729,1763215854429,-500.0,0.00055616,120]
[394042730,1763215854438,-500.0,0.00055616,120]
[394042731,1763215854447,-599.838,0.0005589,120]
[394042732,1763215854457,-500.0,0.0005589,120]
[394042733,1763215854466,-500.0,0.0005589,120]
[394042734,1763215854475,-541.66,0.0005589,120]
[394042735,1763215854485,-500.0,0.0005589,120]
[394042736,1763215854494,-500.0,0.0005589,120]
[394042737,1763215854504,-500.0,0.0005589,120]
[394042738,1763215854514,-500.0,0.0005589,2]
[394042739,1763215854524,-1197.87,0.0005589,120]
[394042740,1763215854534,-297.231859,0.0005589,120]
[394042741,1763215854548,-500.0,0.0005589,120]
[394042742,1763215854558,-153.0,0.00056,120]
[394042743,1763215854570,-3195.30789617,0.00056,120]
[394042744,1763215854579,-2156.14080136,0.00056016,120]
[394042745,1763215854588,-500.0,0.00056164,120]
[394042746,1763215854599,-500.0,0.00056164,120]
[394042747,1763215854611,-541.66,0.00056164,120]
[394042748,1763215854620,-500.0,0.00056164,120]
[394042749,1763215854629,-500.0,0.00056164,120]
[394042750,1763215854640,-500.0,0.00056164,120]
[394042751,1763215854650,-599.7,0.00056164,2]
[394042752,1763215854659,-1197.87,0.00056164,120]
[394042753,1763215854668,-537.101867,0.00056164,120]
[394042754,1763215854677,-787.9,0.000562,14]
[394042755,1763215854687,-166.990251,0.000562,120]
[394042756,1763215854696,-158.545388,0.000562,120]
[394042757,1763215854706,-291.69857279,0.00056328,110]
[394042758,1763215854715,-500.0,0.00056438,120]
[394042759,1763215854725,-199.0,0.00056438,39]
[394042760,1763215854739,-541.66,0.00056438,120]
[394042761,1763215854748,-500.0,0.00056438,120]
[394042762,1763215854757,-500.0,0.00056438,120]
[394042763,1763215854767,-500.0,0.00056438,120]
[394042764,1763215854776,-1197.87,0.00056438,120]
[394042765,1763215854785,-35509.4212,0.0005644,120]
[394042766,1763215854796,-500.0,0.00056712,120]
[394042767,1763215854805,-541.66,0.00056712,120]
[394042768,1763215854814,-500.0,0.00056712,120]
[394042769,1763215854823,-500.0,0.00056712,120]
[394042770,1763215854832,-500.0,0.00056712,120]
[394042771,1763215854842,-1197.87,0.00056712,120]
[394042772,1763215854851,-500.0,0.00056986,120]
[394042773,1763215854861,-541.66,0.00056986,120]
[394042774,1763215854870,-191.65429049,0.00056986,120]
[394042775,1763215854879,-500.0,0.00056986,120]
[394042776,1763215854889,-500.0,0.00056986,120]
[394042777,1763215854898,-1197.87,0.00056986,120]
[394042778,1763215854908,-6272.28008982,0.00057046,120]
[394042779,1763215854917,-494.197863,0.00057046,120]
[394042780,1763215854927,-4683.84,0.000571,14]
[394042781,1763215854937,-592.13961107,0.0005726,120]
[394042782,1763215854947,-541.66,0.0005726,120]
[394042783,1763215854956,-500.0,0.0005726,120]
[394042784,1763215854965,-500.0,0.0005726,120]
[394042785,1763215854975,-1197.87,0.0005726,120]
[394042786,1763215854984,-1211.23,0.00057311,2]
[394042787,1763215854993,-300.4421106,0.00057315,60]
[394042788,1763215855003,-686.5156803,0.00057315,60]
[394042789,1763215855012,-300.4421106,0.00057315,60]
[394042790,1763215855021,-300.4421106,0.00057315,60]
[394042791,1763215855030,-541.66,0.00057534,120]
[394042792,1763215855039,-500.0,0.00057534,120]
[394042793,1763215855048,-999.0,0.00057534,120]
[394042794,1763215855057,-500.0,0.00057534,120]
[394042795,1763215855067,-1197.87,0.00057534,120]
[394042796,1763215855076,-1019.57,0.00057699,2]
[394042797,1763215855085,-153.0,0.000577,120]
[394042798,1763215855095,-199.0,0.00057808,40]
[394042799,1763215855104,-541.66,0.00057808,120]
[394042800,1763215855114,-500.0,0.00057808,120]
[394042801,1763215855123,-500.0,0.00057808,120]
[394042802,1763215855132,-1197.87,0.00057808,120]
[394042803,1763215855141,-541.66,0.00058082,120]
[394042804,1763215855150,-500.0,0.00058082,120]
[394042805,1763215855159,-500.0,0.00058082,120]
[394042806,1763215855169,-1197.87,0.00058082,120]
[394042807,1763215855178,-313.0,0.000581,30]
[394042808,1763215855186,-600.8842212,0.00058137,60]
[394042809,1763215855195,-164.2628813,0.00058137,60]
[394042810,1763215855204,-1000.0,0.0005824,120]
[394042811,1763215855213,-244.0,0.0005824,120]
[394042812,1763215855223,-541.66,0.00058356,120]
[394042813,1763215855233,-500.0,0.00058356,120]
[394042814,1763215855242,-500.0,0.00058356,120]
[394042815,1763215855251,-1197.87,0.00058356,120]
[394042816,1763215855261,-461.42,0.0005837,30]
[394042817,1763215855270,-541.66,0.0005863,120]
[394042818,1763215855280,-500.0,0.0005863,120]
[394042819,1763215855289,-500.0,0.0005863,120]
[394042820,1763215855299,-1197.87,0.0005863,120]
[394042821,1763215855308,-173408.60378151,0.00058875,60]
[394042822,1763215855318,-541.66,0.00058904,120]
[394042823,1763215855328,-500.0,0.00058904,120]
[394042824,1763215855337,-500.0,0.00058904,120]
[394042825,1763215855348,-1197.87,0.00058904,120]